Workbook

Sheet FieldMaster
B2: Field Master Select™
B3: Hall-Effect Systems Design Assistance Program
B5: This file is meant to provide approximate solutions for the design of Hall-effect sensor systems involving magnets and sensors but no accompanying flux carrying steel. Questions that arise during the development of your application may be directed to applications engineers of either your Hall effect device manufacturer or to Arnold Magnetic Technologies applications engineers.
C6: Arnold Magnetic Technologies
C7: 770 Linden Ave
C8: Rochester, NY 14625
C9: Phone: 585-385-9010
C10: Fax: 585-385-9017
C11: E-mail: | D11: infoNA@arnoldmagnetics.com
B14: The CYLINDER and RECTANGLE tab calculations may only be used with "square loop" magnetic materials such as bonded and sintered ferrite, sintered neo, and sintered SmCo. All other materials require more sophisticated calculations. These other materials include alnico, and some bonded NdFeB. Selection assistance is provided for many Alnico magnets in tabs so labeled.
B22: Version 4, 20160804

Sheet Cylinder
A3: Magnetic Field Strength on-axis off the pole face of a cylindrical magnet
A4: Make entries in yellow cells only. Gray cells are calculated.
O5: Calculations are based on the values below
A6: Select Material | B6: NdFeB | O6: =IF(B6<>"",VLOOKUP(B6,O32:P35,2,FALSE),1.05) -> 1.045 | P6: Recoil Perm
B7: Gaussian/English | D7: SI | F7: Conversion Multiplier | G7: Notes
A8: Energy Product | C8: MGOe | E8: kJ/m3 | F8: 7.957747 | G8: • Either Br or energy product | O8: =IF(B8<>"",B8*7.958,IF(D8<>"",D8,"")) ->  | P8: kJ/m3
A9: Br | B9: 12603 | C9: gauss | D9: 1.2603 | E9: tesla | F9: =1/10000 -> 0.0001 | G9: can be entered. Figures in light | O9: =IF(B9<>"",B9/10000,IF(D9<>"",D9,"")) -> 1.2603 | P9: tesla
A10: Length=L | B10: 0.5 | C10: inches | D10: 12.7 | E10: mm | F10: 25.4 | G10: gray text are calculated. | O10: =IF(B10<>"",B10*25.4,IF(D10<>"",D10,0)) -> 12.7 | P10: mm
A11: Diameter=OD | B11: 0.492 | C11: inches | D11: 12.4968 | E11: mm | F11: 25.4 | G11: • A mix of units can be used. | O11: =IF(B11<>"",B11*25.4,IF(D11<>"",D11,0)) -> 12.4968 | P11: mm
A12: Inside Diameter=ID | C12: inches | D12: 0 | E12: mm | F12: 25.4 | G12: • Cells in gray are calculated. | O12: =IF(B12<>"",B12*25.4,IF(D12<>"",D12,0)) -> 0 | P12: mm
A13: Gap=Z | C13: inches | D13: 0 | E13: mm | F13: 25.4 | O13: =IF(AND(B13<>"",B13>0.000001),B13*25.4,IF(AND(D13<>"",D13>0.000001),D13,0.000000000001)) -> 1e-12 | P13: mm
A14: Field at Gap=Z | B14: =(B$15)*(((O13+O$10)/SQRT(4*(O13+O$10)^2+O$11^2))-((O13/SQRT(4*(O13^2)+O$11^2))))-(B$15)*(((O13+O$10)/SQRT(4*(O13+O$10)^2+O$12^2))-((O13/SQRT(4*(O13^2)+O$12^2)))) -> 5654.210248 | C14: gauss | D14: =B14/10000 -> 0.5654210248 | E14: tesla | O14: =IF(D14<>"",D14,"") -> 0.5654210248 | P14: tesla
A15: Br, est. from (BH)max | B15: =IF(O9<>"",O9*10000,IF(O8<>"",1000*((O8*(4*PI()/100)*4*O6)^0.5),"")) -> 12603 | C15: gauss | D15: =B15/10000 -> 1.2603 | E15: tesla
A16: (BH)max est. from Br | B16: =IF(O8<>"",O8*4*PI()/100,IF(O9<>"",(10*O9)^2/(4*O6),"")) -> 37.99894952 | C16: MGOe | D16: =B16*100/(4*PI()) -> 302.3860324 | E16: kJ/m3
A18: Plotting Data
A19: Gap (Starting) | B19: 0 | C19: inches | D19: 0 | E19: mm | F19: 25.4 | G19: Usually zero | O19: =IF(B19<>"",B19*25.4,IF(D19<>"",D19,0)) -> 0 | P19: mm
A20: Increment | C20: inches | E20: mm | F20: 25.4 | G20: Enter increment or max gap | O20: =IF(B20<>"",B20*25.4,IF(D20<>"",D20,0)) -> 0 | P20: mm
A21: Max Gap | B21: 1.25 | C21: inches | D21: 31.75 | E21: mm | F21: 25.4 | O21: =IF(B21<>"",B21*25.4,IF(D21<>"",D21,0)) -> 31.75 | P21: mm
A22: If Gap and Max Gap are not specified, a default increment of 0.010 inches will be used.
A23: If the Increment is specified, Max Gap will be ignored. | O23: Magnetic Units
A24: To specify Max Gap, delete the Increment value. | O24: Gaussian
O25: SI
A26: Calculations
A27: Gap (Inches) | B27: Gap (mm) | C27: Gauss | D27: mT | O27: Dimension Units
A28: =IF(O19=0,0.0000000001,O19/25.4) -> 1e-10 | B28: =A28*25.4 -> 2.54e-09 | C28: =(B$15)*(((B28+O$10)/SQRT(4*(B28+O$10)^2+O$11^2))-((B28/SQRT(4*(B28^2)+O$11^2))))-(B$15)*(((B28+O$10)/SQRT(4*(B28+O$10)^2+O$12^2))-((B28/SQRT(4*(B28^2)+O$12^2)))) -> 5654.210246 | D28: =C28/10 -> 565.4210246 | O28: English
A29: =IF(O$20<>0,A28+O$20/25.4,IF(O$21<>0,A28+(O$21/25.4-O$19/25.4)/50,A28+0.01)) -> 0.0250000001 | B29: 0.6350000025 | C29: =(B$15)*(((B29+O$10)/SQRT(4*(B29+O$10)^2+O$11^2))-((B29/SQRT(4*(B29^2)+O$11^2))))-(B$15)*(((B29+O$10)/SQRT(4*(B29+O$10)^2+O$12^2))-((B29/SQRT(4*(B29^2)+O$12^2)))) -> 5069.026232 | D29: =C29/10 -> 506.9026232 | O29: SI
A30: =IF(O$20<>0,A29+O$20/25.4,IF(O$21<>0,A29+(O$21/25.4-O$19/25.4)/50,A29+0.01)) -> 0.0500000001 | B30: 1.270000003 | C30: 4497.199911 | D30: 449.7199911
A31: 0.0750000001 | B31: 1.905000003 | C31: 3955.875001 | D31: 395.5875001 | O31: Materials
A32: 0.1000000001 | B32: 2.540000003 | C32: 3457.461941 | D32: 345.7461941 | O32: SmCo 1:5 | P32: 1.035
A33: 0.1250000001 | B33: 3.175000003 | C33: 3009.050804 | D33: 300.9050804 | O33: SmCo 2:17 | P33: 1.06
A34: 0.1500000001 | B34: 3.810000003 | C34: 2612.936429 | D34: 261.2936429 | O34: NdFeB | P34: 1.045
A35: 0.1750000001 | B35: 4.445000003 | C35: 2267.776911 | D35: 226.7776911 | O35: Ferrite | P35: 1.045
A36: 0.2000000001 | B36: 5.080000003 | C36: 1969.894703 | D36: 196.9894703
A37: 0.2250000001 | B37: 5.715000003 | C37: 1714.40104 | D37: 171.440104 | O37: Grade Selection
A38: 0.2500000001 | B38: 6.350000003 | C38: 1496.017472 | D38: 149.6017472 | O38: Br
A39: 0.2750000001 | B39: 6.985000003 | C39: 1309.598739 | D39: 130.9598739 | O39: (BH)max
A40: 0.3000000001 | B40: 7.620000003 | C40: 1150.419925 | D40: 115.0419925
A41: 0.3250000001 | B41: 8.255000003 | C41: 1014.30163 | D41: 101.430163
A42: 0.3500000001 | B42: 8.890000003 | C42: 897.635409 | D42: 89.7635409
A43: 0.3750000001 | B43: 9.525000003 | C43: 797.3542193 | D43: 79.73542193
A44: 0.4000000001 | B44: 10.16 | C44: 710.8769367 | D44: 71.08769367
A45: 0.4250000001 | B45: 10.795 | C45: 636.0442344 | D45: 63.60442344
A46: 0.4500000001 | B46: 11.43 | C46: 571.0553045 | D46: 57.10553045
A47: 0.4750000001 | B47: 12.065 | C47: 514.4100354 | D47: 51.44100354
A48: 0.5000000001 | B48: 12.7 | C48: 464.8584363 | D48: 46.48584363
A49: 0.5250000001 | B49: 13.335 | C49: 421.357568 | D49: 42.1357568
A50: 0.5500000001 | B50: 13.97 | C50: 383.0354757 | D50: 38.30354757
A51: 0.5750000001 | B51: 14.605 | C51: 349.1613062 | D51: 34.91613062
A52: 0.6000000001 | B52: 15.24 | C52: 319.1207067 | D52: 31.91207067
A53: 0.6250000001 | B53: 15.875 | C53: 292.3956465 | D53: 29.23956465
A54: 0.6500000001 | B54: 16.51 | C54: 268.5478947 | D54: 26.85478947
A55: 0.6750000001 | B55: 17.145 | C55: 247.2054936 | D55: 24.72054936
A56: 0.7000000001 | B56: 17.78 | C56: 228.051678 | D56: 22.8051678
A57: 0.7250000001 | B57: 18.415 | C57: 210.8157828 | D57: 21.08157828
A58: 0.7500000001 | B58: 19.05 | C58: 195.2657689 | D58: 19.52657689
A59: 0.7750000001 | B59: 19.685 | C59: 181.202063 | D59: 18.1202063
A60: 0.8000000001 | B60: 20.32 | C60: =(B$15)*(((B60+O$10)/SQRT(4*(B60+O$10)^2+O$11^2))-((B60/SQRT(4*(B60^2)+O$11^2))))-(B$15)*(((B60+O$10)/SQRT(4*(B60+O$10)^2+O$12^2))-((B60/SQRT(4*(B60^2)+O$12^2)))) -> 168.4524679 | D60: 16.84524679
A61: 0.8250000001 | B61: 20.955 | C61: 156.8679446 | D61: 15.68679446
A62: 0.8500000001 | B62: 21.59 | C62: 146.3191071 | D62: 14.63191071
A63: 0.8750000001 | B63: 22.225 | C63: 136.6932999 | D63: 13.66932999
A64: 0.9000000001 | B64: 22.86 | C64: 127.8921542 | D64: 12.78921542
A65: 0.9250000001 | B65: 23.495 | C65: 119.8295386 | D65: 11.98295386
A66: 0.9500000001 | B66: 24.13 | C66: 112.4298341 | D66: 11.24298341
A67: 0.9750000001 | B67: 24.765 | C67: 105.626479 | D67: 10.5626479 | G67: Chart Labels
A68: 1 | B68: 25.4 | C68: 99.36073693 | D68: 9.936073693 | G68: ="Magnetic Length = "&B10&" inches" -> Magnetic Length = 0.5 inches
A69: 1.025 | B69: 26.035 | C69: 93.5806508 | D69: 9.35806508 | G69: ="Diameter = "&B11&" inches" -> Diameter = 0.492 inches
A70: 1.05 | B70: 26.67 | C70: 88.24015274 | D70: 8.824015274 | G70: ="Br = "&ROUND(B15,0)&" gauss" -> Br = 12603 gauss
A71: 1.075 | B71: 27.305 | C71: 83.29830363 | D71: 8.329830363
A72: 1.1 | B72: 27.94 | C72: 78.71864235 | D72: 7.871864235
A73: 1.125 | B73: 28.575 | C73: 74.46862696 | D73: 7.446862696 | G73: Chart Labels
A74: 1.15 | B74: 29.21 | C74: 70.51915384 | D74: 7.051915384 | G74: ="Magnetic Length = "&O10&" mms" -> Magnetic Length = 12.7 mms
A75: 1.175 | B75: 29.845 | C75: 66.84414266 | D75: 6.684414266 | G75: ="Diameter = "&O11&" mm" -> Diameter = 12.4968 mm
A76: 1.2 | B76: 30.48 | C76: 63.42017741 | D76: 6.342017741 | G76: ="Br = "&ROUND(B15,0)&" gauss" -> Br = 12603 gauss
A77: 1.225 | B77: 31.115 | C77: 60.2261951 | D77: 6.02261951
A78: 1.25 | B78: 31.75 | C78: 57.24321519 | D78: 5.724321519

Sheet Rectangle
A3: Magnetic Field Strength on-axis off the pole face of a rectangular magnet
A4: Make entries in yellow cells only. Gray cells are calculated.
O5: Calculations are based on the values below
A6: Select Material | B6: NdFeB | O6: =IF(B6<>"",VLOOKUP(B6,O28:P31,2,FALSE),1.05) -> 1.045 | P6: Recoil Perm
B7: English | D7: SI | F7: Conversion Multiplier | G7: Notes
A8: Estimated BHmax | B8: 38 | C8: MGOe | D8: 302.394386 | E8: kJ/m3 | F8: 7.957747 | G8: • Either Br or energy product | O8: =IF(B8<>"",B8*100/(4*PI()),IF(D8<>"",D8,"")) -> 302.3943919 | P8: kJ/m3
A9: Br | C9: gauss | E9: mT | F9: =1/10000 -> 0.0001 | G9: can be entered. Figures in light | O9: =IF(B9<>"",B9/10000,IF(D9<>"",D9,"")) ->  | P9: tesla
A10: Face Width=W | B10: 0.06 | C10: inches | D10: 1.524 | E10: mm | F10: 25.4 | G10: gray text are calculated. | O10: =IF(B10<>"",B10*25.4,IF(D10<>"",D10,0)) -> 1.524 | P10: mm
A11: Length (or Depth)=L | B11: 0.075 | C11: inches | D11: 1.905 | E11: mm | F11: 25.4 | G11: • A mix of units can be used. | O11: =IF(B11<>"",B11*25.4,IF(D11<>"",D11,0)) -> 1.905 | P11: mm
A12: Thickness=T | B12: 0.06 | C12: inches | D12: 1.524 | E12: mm | F12: 25.4 | G12: • Cells in gray are calculated. | O12: =IF(B12<>"",B12*25.4,IF(D12<>"",D12,0)) -> 1.524 | P12: mm
A13: Design Gap=Z | B13: 0 | C13: inches | D13: 0 | E13: mm | F13: 25.4 | O13: =IF(AND(B13<>"",B13>0.000001),B13*25.4,IF(AND(D13<>"",D13>0.000001),D13,0.000000000001)) -> 1e-12 | P13: mm
A14: Gauss at gap | B14: =(B$15/PI())*(ATAN((O$10*O$11)/(2*O13*SQRT(O$10^2+O$11^2+4*O13^2)))-ATAN((O$10*O$11)/(2*(O13+O$12)*SQRT(O$10^2+O$11^2+4*(O13+O$12)^2)))) -> 5341.583302 | C14: Gauss | D14: =B14/10000 -> 0.5341583302 | E14: tesla | O14: =IF(D14<>"",D14,"") -> 0.5341583302 | P14: tesla
A15: Br, est. from (BH)max | B15: =IF(O9 <>"",O9*10000,IF(O8<>"",((O8*4*PI()/100)*4*O6)^0.5*1000,"")) -> 12603.1742 | C15: gauss | D15: =B15/10000 -> 1.26031742 | E15: T | O15: =IF(D15<>"",B15/10000,"") -> 1.26031742 | P15: tesla
A16: (BH)max est. from Br | B16: =(B15/1000)^2/(4*O6) -> 38 | C16: MGOe | D16: =B16*7.958 -> 302.404 | E16: kJ/m3
A18: Plotting Data
A19: Gap (Starting) | B19: 0 | C19: inches | D19: 0 | E19: mm | F19: 25.4 | G19: Usually zero | O19: =IF(B19<>"",B19*25.4,IF(D19<>"",D19,0)) -> 0 | P19: mm
A20: Increment | C20: inches | E20: mm | F20: 25.4 | G20: Enter increment or max gap | O20: =IF(B20<>"",B20*25.4,IF(D20<>"",D20,0)) -> 0 | P20: mm
A21: Max Gap | B21: 0.25 | C21: inches | D21: 6.35 | E21: mm | F21: 25.4 | O21: =IF(B21<>"",B21*25.4,IF(D21<>"",D21,0)) -> 6.35 | P21: mm
A22: If Gap and Max Gap are not specified, a default increment of 0.010 inches will be used.
A23: If the Increment is specified, Max Gap will be ignored.
A24: To specify Max Gap, delete the Increment value.
A26: Calculations
A27: Gap (Inches) | B27: Gap (mm) | C27: Gauss | D27: mT | O27: Materials
A28: =IF(O19=0,0.0000000001,O19/25.4) -> 1e-10 | B28: =A28*25.4 -> 2.54e-09 | C28: =(B$15/PI())*(ATAN((O$10*O$11)/(2*B28*SQRT(O$10^2+O$11^2+4*B28^2)))-ATAN((O$10*O$11)/(2*(B28+O$12)*SQRT(O$10^2+O$11^2+4*(B28+O$12)^2)))) -> 5341.583288 | D28: =C28/10 -> 534.1583288 | O28: SmCo 1:5 | P28: 1.035
A29: =IF(O$20<>0,A28+O$20/25.4,IF(O$21<>0,A28+(O$21/25.4-O$19/25.4)/50,A28+0.01)) -> 0.0050000001 | B29: =A29*25.4 -> 0.1270000025 | C29: 4607.200067 | D29: 460.7200067 | O29: SmCo 2:17 | P29: 1.06
A30: 0.0100000001 | B30: 0.2540000025 | C30: 3901.441642 | D30: 390.1441642 | O30: NdFeB | P30: 1.045
A31: 0.0150000001 | B31: 0.3810000025 | C31: 3261.762303 | D31: 326.1762303 | O31: Ferrite | P31: 1.045
A32: 0.0200000001 | B32: 0.5080000025 | C32: 2707.288826 | D32: 270.7288826
A33: 0.0250000001 | B33: 0.6350000025 | C33: 2241.381036 | D33: 224.1381036
A34: 0.0300000001 | B34: 0.7620000025 | C34: 1857.512176 | D34: 185.7512176
A35: 0.0350000001 | B35: 0.8890000025 | C35: 1544.675034 | D35: 154.4675034
A36: 0.0400000001 | B36: 1.016000003 | C36: 1290.919233 | D36: 129.0919233
A37: 0.0450000001 | B37: 1.143000003 | C37: 1085.174813 | D37: 108.5174813
A38: 0.0500000001 | B38: 1.270000003 | C38: 917.9599763 | D38: 91.79599763
A39: 0.0550000001 | B39: 1.397000003 | C39: 781.4922927 | D39: 78.14922927
A40: 0.0600000001 | B40: 1.524000003 | C40: 669.5333281 | D40: 66.95333281
A41: 0.0650000001 | B41: 1.651000003 | C41: 577.1445651 | D41: 57.71445651
A42: 0.0700000001 | B42: 1.778000003 | C42: 500.4387103 | D42: 50.04387103
A43: 0.0750000001 | B43: 1.905000003 | C43: 436.3600875 | D43: 43.63600875
A44: 0.0800000001 | B44: 2.032000003 | C44: 382.503328 | D44: 38.2503328
A45: 0.0850000001 | B45: 2.159000003 | C45: 336.968915 | D45: 33.6968915
A46: 0.0900000001 | B46: 2.286000003 | C46: 298.2503111 | D46: 29.82503111
A47: 0.0950000001 | B47: 2.413000003 | C47: 265.1466607 | D47: 26.51466607
A48: 0.1000000001 | B48: 2.540000003 | C48: 236.6955855 | D48: 23.66955855
A49: 0.1050000001 | B49: 2.667000003 | C49: 212.1215032 | D49: 21.21215032
A50: 0.1100000001 | B50: 2.794000003 | C50: 190.7958326 | D50: 19.07958326
A51: 0.1150000001 | B51: 2.921000003 | C51: 172.2062671 | D51: 17.22062671
A52: 0.1200000001 | B52: 3.048000003 | C52: 155.9329597 | D52: 15.59329597
A53: 0.1250000001 | B53: 3.175000003 | C53: 141.6299837 | D53: 14.16299837
A54: 0.1300000001 | B54: 3.302000003 | C54: 129.0108296 | D54: 12.90108296
A55: 0.1350000001 | B55: 3.429000003 | C55: 117.8370037 | D55: 11.78370037
A56: 0.1400000001 | B56: 3.556000003 | C56: 107.9090172 | D56: 10.79090172
A57: 0.1450000001 | B57: 3.683000003 | C57: 99.05922845 | D57: 9.905922845
A58: 0.1500000001 | B58: 3.810000003 | C58: 91.14612823 | D58: 9.114612823 | G58: Chart Labels, CGS
A59: 0.1550000001 | B59: 3.937000003 | C59: 84.04975279 | D59: 8.404975279 | G59: ="Width = "&B10&" inches" -> Width = 0.06 inches
A60: 0.1600000001 | B60: 4.064000003 | C60: =(B$15/PI())*(ATAN((O$10*O$11)/(2*B60*SQRT(O$10^2+O$11^2+4*B60^2)))-ATAN((O$10*O$11)/(2*(B60+O$12)*SQRT(O$10^2+O$11^2+4*(B60+O$12)^2)))) -> 77.66798501 | D60: =C60/10 -> 7.766798501 | G60: ="Depth = "&B11&" inches" -> Depth = 0.075 inches
A61: =IF(O$20<>0,A60+O$20/25.4,IF(O$21<>0,A60+(O$21/25.4-O$19/25.4)/50,A60+0.01)) -> 0.1650000001 | B61: 4.191000003 | C61: 71.91355646 | D61: 7.191355646 | G61: ="Magnetic Length = "&B12&" inches" -> Magnetic Length = 0.06 inches
A62: 0.1700000001 | B62: 4.318000003 | C62: 66.71160642 | D62: 6.671160642 | G62: ="Br = "&B9&" gauss" -> Br = gauss
A63: 0.1750000001 | B63: 4.445000003 | C63: 61.99768521 | D63: 6.199768521
A64: 0.1800000001 | B64: 4.572000003 | C64: 57.71611366 | D64: 5.771611366 | G64: Chart Labels, SI
A65: 0.1850000001 | B65: 4.699000003 | C65: 53.81862947 | D65: 5.381862947 | G65: ="Width = "&D10&" mm" -> Width = 1.524 mm
A66: 0.1900000001 | B66: 4.826000003 | C66: 50.26326575 | D66: 5.026326575 | G66: ="Depth = "&D11&" mm" -> Depth = 1.905 mm
A67: 0.1950000001 | B67: 4.953000003 | C67: 47.01341798 | D67: 4.701341798 | G67: ="Magnetic Length = "&D12&" mm" -> Magnetic Length = 1.524 mm
A68: 0.2000000001 | B68: 5.080000003 | C68: 44.03706497 | D68: 4.403706497 | G68: ="Br = "&B9&" gauss" -> Br = gauss
A69: 0.2050000001 | B69: 5.207000003 | C69: 41.30611586 | D69: 4.130611586
A70: 0.2100000001 | B70: 5.334000003 | C70: 38.7958608 | D70: 3.87958608
A71: 0.2150000001 | B71: 5.461000003 | C71: 36.48450727 | D71: 3.648450727
A72: 0.2200000001 | B72: 5.588000003 | C72: 34.35278744 | D72: 3.435278744
A73: 0.2250000001 | B73: 5.715000003 | C73: 32.38362445 | D73: 3.238362445
A74: 0.2300000001 | B74: 5.842000003 | C74: 30.56184812 | D74: 3.056184812
A75: 0.2350000001 | B75: 5.969000003 | C75: 28.87395175 | D75: 2.887395175
A76: 0.2400000001 | B76: 6.096000003 | C76: 27.3078838 | D76: 2.73078838
A77: 0.2450000001 | B77: 6.223000003 | C77: 25.85286859 | D77: 2.585286859
A78: 0.2500000001 | B78: 6.350000003 | C78: 24.49925191 | D78: 2.449925191

Sheet Solenoids
B3: Magnetic Field Strength on Axis for Solenoids
B5: Gaussian and the SI (Tesla) sections function separately. Enter information in yellow cells only. Select left (start) and right (end) limits for the charts. Vertical axis scales automatically.
B7: Gaussian, inches | M7: Tesla, millimeters
J8: Excel Data Table for Chart | U8: Data Table for Chart
B9: Gauss on Axis for Cylindrical Coils | J9: Start | K9: End | M9: Gauss on Axis for Cylindrical Coils | U9: Start | V9: End
B10: Inside | C10: Outside | E10: Coil | G10: Distance | J10: -5 | K10: 5 | M10: Inside | N10: Outside | P10: Coil | R10: Distance | U10: -127 | V10: 127
B11: Diameter | C11: Diameter | D11: Turns | E11: Length | F11: Current | G11: from Center | K11: =((0.2478*D14*F14)/(C17-B17))*((E14/2-G14)*LN((2*C17+SQRT(4*C17*C17+(E14-2*G14)*(E14-2*G14)))/(2*B17+SQRT(4*B17*B17+(E14-2*G14)*(E14-2*G14))))+(E14/2+G14)*LN((2*C17+SQRT(4*C17*C17+(E14+2*G14)*(E14+2*G14)))/(2*B17+SQRT(4*B17*B17+(E14+2*G14)*(E14+2*G14)))))/E14 -> 246.6794114 | M11: Diameter | N11: Diameter | O11: Turns | P11: Length | Q11: Current | R11: from Center | V11: =((0.629412*O14*Q14)/(N17-M17))*((P14/2-R14)*LN((2*N17+SQRT(4*N17*N17+(P14-2*R14)*(P14-2*R14)))/(2*M17+SQRT(4*M17*M17+(P14-2*R14)*(P14-2*R14))))+(P14/2+R14)*LN((2*N17+SQRT(4*N17*N17+(P14+2*R14)*(P14+2*R14)))/(2*M17+SQRT(4*M17*M17+(P14+2*R14)*(P14+2*R14)))))/P14 -> 24.66794114
B12: ID | C12: OD | D12: N | E12: L | F12: I | G12: Z | J12: =J10 -> -5 | K12: 0.2040257794 | M12: ID | N12: OD | O12: N | P12: L | Q12: I | R12: Z | U12: =U10 -> -127 | V12: 0.02040257794
B13: inches | C13: inches | D13: # | E13: inches | F13: Amperes | G13: inches | J13: =J12+((K$10-J$12)/50) -> -4.8 | K13: 0.2381351125 | M13: mm | N13: mm | O13: # | P13: mm | Q13: Amperes | R13: mm | U13: =U12+((V$10-U$12)/50) -> -121.92 | V13: 0.02381351125
B14: 0.25 | C14: 0.5 | D14: 100 | E14: 4 | F14: 20 | G14: 0 | J14: -4.6 | K14: 0.2807679676 | M14: 6.35 | N14: 12.7 | O14: 100 | P14: 101.6 | Q14: 20 | R14: 0 | U14: -116.84 | V14: 0.02807679676
J15: -4.4 | K15: 0.3349115479 | U15: -111.76 | V15: 0.03349115479
B16: ri =ID/2 | C16: ro =OD/2 | D16: n=Turns/in | E16: L/2 | G16: Distance from end | J16: -4.2 | K16: 0.4049640091 | M16: ri =ID/2 | N16: ro =OD/2 | O16: n=Turns/in | P16: L/2 | R16: Distance from end | U16: -106.68 | V16: 0.04049640091
B17: =B14/2 -> 0.125 | C17: =C14/2 -> 0.25 | D17: =D14/E14 -> 25 | E17: =E14/2 -> 2 | G17: =G14-E17 -> -2 | J17: -4 | K17: 0.4976097975 | M17: =M14/2 -> 3.175 | N17: =N14/2 -> 6.35 | O17: =O14/P14 -> 0.9842519685 | P17: =P14/2 -> 50.8 | R17: =R14-P17 -> -50.8 | U17: -101.6 | V17: 0.04976097975
J18: -3.8 | K18: 0.6233970214 | U18: -96.52 | V18: 0.06233970214
E19: Gauss at location = | G19: =((0.2478*D14*F14)/(C17-B17))*((E14/2-G14)*LN((2*C17+SQRT(4*C17*C17+(E14-2*G14)*(E14-2*G14)))/(2*B17+SQRT(4*B17*B17+(E14-2*G14)*(E14-2*G14))))+(E14/2+G14)*LN((2*C17+SQRT(4*C17*C17+(E14+2*G14)*(E14+2*G14)))/(2*B17+SQRT(4*B17*B17+(E14+2*G14)*(E14+2*G14)))))/E14 -> 246.6794114 | J19: -3.6 | K19: 0.7997388749 | P19: milliTesla at location = | R19: =((0.629412*O14*Q14)/(N17-M17))*((P14/2-R14)*LN((2*N17+SQRT(4*N17*N17+(P14-2*R14)*(P14-2*R14)))/(2*M17+SQRT(4*M17*M17+(P14-2*R14)*(P14-2*R14))))+(P14/2+R14)*LN((2*N17+SQRT(4*N17*N17+(P14+2*R14)*(P14+2*R14)))/(2*M17+SQRT(4*M17*M17+(P14+2*R14)*(P14+2*R14)))))/P14 -> 24.66794114 | U19: -91.44 | V19: 0.07997388749
J20: -3.4 | K20: 1.05701224 | U20: -86.36 | V20: 0.105701224
J21: -3.2 | K21: 1.451991281 | U21: -81.28 | V21: 0.1451991281
J22: -3 | K22: 2.100603468 | U22: -76.2 | V22: 0.2100603468
J23: -2.8 | K23: 3.269038782 | U23: -71.12 | V23: 0.3269038782
J24: -2.6 | K24: 5.676007421 | U24: -66.04 | V24: 0.5676007421
J25: -2.4 | K25: 11.77054255 | U25: -60.96 | V25: 1.177054255
J26: -2.2 | K26: 33.08743278 | U26: -55.88 | V26: 3.308743278
J27: -2 | K27: 123.759112 | U27: -50.8 | V27: 12.3759112
J28: -1.8 | K28: 214.4286786 | U28: -45.72 | V28: 21.44286786
J29: -1.6 | K29: 235.7391251 | U29: -40.64 | V29: 23.57391251
J30: -1.4 | K30: 241.822555 | U30: -35.56 | V30: 24.1822555
J31: -1.2 | K31: 244.2131667 | U31: -30.48 | V31: 24.42131667
J32: -1 | K32: 245.3590749 | U32: -25.4 | V32: 24.53590749
J33: -0.8 | K33: 245.9776296 | U33: -20.32 | V33: 24.59776296
J34: -0.6 | K34: 246.333034 | U34: -15.24 | V34: 24.6333034
J35: -0.4 | K35: 246.5382999 | U35: -10.16 | V35: 24.65382999
J36: -0.2 | K36: 246.6458521 | U36: -5.08 | V36: 24.66458521
J37: 2.164934898e-15 | K37: 246.6794114 | U37: -3.552713679e-14 | V37: 24.66794114
J38: 0.2 | K38: 246.6458521 | U38: 5.08 | V38: 24.66458521
J39: 0.4 | K39: 246.5382999 | U39: 10.16 | V39: 24.65382999
J40: 0.6 | K40: 246.333034 | U40: 15.24 | V40: 24.6333034
J41: 0.8 | K41: 245.9776296 | U41: 20.32 | V41: 24.59776296
J42: 1 | K42: 245.3590749 | U42: 25.4 | V42: 24.53590749
J43: 1.2 | K43: 244.2131667 | U43: 30.48 | V43: 24.42131667
J44: 1.4 | K44: 241.822555 | U44: 35.56 | V44: 24.1822555
J45: =J44+((K$10-J$12)/50) -> 1.6 | K45: 235.7391251 | U45: 40.64 | V45: 23.57391251
J46: 1.8 | K46: 214.4286786 | U46: 45.72 | V46: 21.44286786
J47: 2 | K47: 123.759112 | U47: 50.8 | V47: 12.3759112
J48: 2.2 | K48: 33.08743278 | U48: 55.88 | V48: 3.308743278
J49: 2.4 | K49: 11.77054255 | U49: 60.96 | V49: 1.177054255
J50: 2.6 | K50: 5.676007421 | U50: 66.04 | V50: 0.5676007421
J51: 2.8 | K51: 3.269038782 | U51: 71.12 | V51: 0.3269038782
J52: 3 | K52: 2.100603468 | U52: 76.2 | V52: 0.2100603468
J53: 3.2 | K53: 1.451991281 | U53: 81.28 | V53: 0.1451991281
J54: 3.4 | K54: 1.05701224 | U54: 86.36 | V54: 0.105701224
J55: 3.6 | K55: 0.7997388749 | U55: 91.44 | V55: 0.07997388749
J56: 3.8 | K56: 0.6233970214 | U56: 96.52 | V56: 0.06233970214
J57: 4 | K57: 0.4976097975 | U57: 101.6 | V57: 0.04976097975
J58: 4.2 | K58: 0.4049640091 | U58: 106.68 | V58: 0.04049640091
J59: 4.4 | K59: 0.3349115479 | U59: 111.76 | V59: 0.03349115479
J60: 4.6 | K60: 0.2807679676 | U60: 116.84 | V60: 0.02807679676
J61: 4.8 | K61: 0.2381351125 | U61: 121.92 | V61: 0.02381351125
J62: 5 | K62: 0.2040257794 | U62: 127 | V62: 0.02040257794

Sheet Alnico-Table
B3: SINTERED ALNICO TABLE
B6: DISTANCE (inches) associated with FLUX DENSITY of this gauss
B8: MATERIAL | C8: SHAPE | D8: DIM.(dia X length) | E8: 100g | F8: 150g | G8: 200g | H8: 250g
B10: Alnico 8H | C10: Cylinder | D10: .125" X .125" | E10: 0.124 | F10: 0.101 | G10: 0.084 | H10: 0.074
B11: Alnico 8H | C11: Cylinder | D11: .125" X .250" | E11: 0.172 | F11: 0.136 | G11: 0.11 | H11: 0.093
B12: Alnico 8H | C12: Cylinder | D12: .250" X .0625" | E12: 0.144 | F12: 0.116 | G12: 0.09 | H12: 0.068
B13: Alnico 8H | C13: Cylinder | D13: .250" X .125" | E13: 0.225 | F13: 0.18 | G13: 0.146 | H13: 0.12
B14: Alnico 8H | C14: Cylinder | D14: .250" X .250" | E14: 0.293 | F14: 0.236 | G14: 0.195 | H14: 0.166
B15: Alnico 8H | C15: Cylinder | D15: .375" X .125" | E15: 0.283 | F15: 0.23 | G15: 0.186 | H15: 0.153
B16: Alnico 8H | C16: Cylinder | D16: .375" X .250" | E16: 0.387 | F16: 0.318 | G16: 0.264 | H16: 0.218
B17: Alnico 8H | C17: Cylinder | D17: .500" X .125" | E17: 0.315 | F17: 0.243 | G17: 0.188 | H17: 0.148
B18: Alnico 8H | C18: Cylinder | D18: .500" X .250" | E18: >0.4 | F18: 0.378 | G18: 0.306 | H18: 0.268
B19: Alnico 8H | C19: Cylinder | D19: .500" X .500" | E19: >0.4 | F19: >0.4 | G19: >0.4 | H19: 0.39
B20: Alnico 5 | C20: Rectangle | D20: .125"sq. X .750" | E20: 0.257 | F20: 0.195 | G20: 0.159 | H20: 0.136
B21: Alnico 5 | C21: Cylinder | D21: .250" X 1.00" | E21: 0.48 | F21: 0.375 | G21: 0.324 | H21: 0.279
B24: Data for Standard Sintered Alnico Products are on the following tabs.

Sheet Sint. Alnico-Sheet-1
F1: Sintered Alnico Standard Products, Sheet-1
B3: Catalog #
B4: Production # | C4: 27941 | D4: 31204 | E4: 31405
B5: Diameter, in. | C5: 0.08 | D5: 0.062 | E5: 0.081
B6: Length, in. | C6: 0.11 | D6: 0.065 | E6: 0.187
B7: Material | C7: Sint. Alnico 8B | D7: Sint. Alnico 8B | E7: Sint.Alnico 8B
G8: Distance
B9: Distance, in. | C9: Gauss(27941) | D9: Gauss(31204) | E9: Gauss(31405) | G9: mm
B10: 0 | C10: 1166 | D10: 982 | E10: 1294.9 | G10: =B10*25.4 -> 0
B11: 0.005 | C11: 1030 | D11: 797 | E11: 1198.7 | G11: 0.127
B12: 0.01 | C12: 891 | D12: 645 | E12: 1054.3 | G12: 0.254
B13: 0.015 | C13: 765 | D13: 528 | E13: 913.1 | G13: 0.381
B14: 0.02 | C14: 658 | D14: 437 | E14: 796.8 | G14: 0.508
B15: 0.025 | C15: 569 | D15: 361 | E15: 678.5 | G15: 0.635
B16: 0.03 | C16: 491 | D16: 300 | E16: 601.8 | G16: 0.762
B17: 0.035 | C17: 427 | D17: 253 | E17: 526.1 | G17: 0.889
B18: 0.04 | C18: 372 | D18: 215 | E18: 461.9 | G18: 1.016
B19: 0.045 | C19: 327 | D19: 184 | E19: 408 | G19: 1.143
B20: 0.05 | C20: 289 | D20: 158 | E20: 364.5 | G20: 1.27
B21: 0.055 | C21: 256 | D21: 137 | E21: 324.2 | G21: 1.397
B22: 0.06 | C22: 227 | D22: 120 | E22: 291.8 | G22: 1.524
B23: 0.065 | C23: 203 | D23: 105 | E23: 261.9 | G23: 1.651
B24: 0.07 | C24: 182 | D24: 92.2 | E24: 237.9 | G24: 1.778
B25: 0.075 | C25: 164 | D25: 81.8 | E25: 214.9 | G25: 1.905
B26: 0.08 | C26: 149 | D26: 72.6 | E26: 194.41 | G26: 2.032
B27: 0.085 | C27: 133 | D27: 64.9 | E27: 178.24 | G27: 2.159
B28: 0.09 | C28: 122 | D28: 58.2 | E28: 161.96 | G28: 2.286
B29: 0.095 | C29: 110 | D29: 52.3 | E29: 147.24 | G29: 2.413
B30: 0.1 | C30: 101 | D30: 47.2 | E30: 135.83 | G30: 2.54
B31: 0.105 | C31: 92.6 | D31: 42.6 | E31: 125.55 | G31: 2.667
B32: 0.11 | C32: 84.9 | D32: 38.9 | E32: 116.04 | G32: 2.794
B33: 0.115 | C33: 78.3 | D33: 35.4 | E33: 107.56 | G33: 2.921
B34: 0.12 | C34: 72 | D34: 32.4 | E34: 99.39 | G34: 3.048
B35: 0.125 | C35: 66.7 | D35: 29.8 | E35: 92.11 | G35: 3.175
B36: 0.13 | C36: 61.8 | D36: 27.4 | E36: 85.8 | G36: 3.302
B37: 0.135 | C37: 57.3 | D37: 25.2 | E37: 79.81 | G37: 3.429
B38: 0.14 | C38: 53.2 | D38: 23.3 | E38: 74.64 | G38: 3.556
B39: 0.145 | C39: 49.5 | D39: 21.5 | E39: 69.12 | G39: 3.683
B40: 0.15 | C40: 46.1 | D40: 19.9 | E40: 65.14 | G40: 3.81
B41: 0.155 | C41: 43 | D41: 18.4 | E41: 61.43 | G41: 3.937
B42: 0.16 | C42: 40.3 | D42: 17.2 | E42: 57.84 | G42: =B42*25.4 -> 4.064
B43: 0.165 | C43: 37.7 | D43: 16 | E43: 54.52 | G43: 4.191
B44: 0.17 | C44: 35.4 | D44: 14.9 | E44: 51.25 | G44: 4.318
B45: 0.175 | C45: 33.2 | D45: 13.9 | E45: 48.29 | G45: 4.445
B46: 0.18 | C46: 31.3 | D46: 13.1 | E46: 45.54 | G46: 4.572
B47: 0.185 | C47: 29.5 | D47: 12.3 | E47: 43.14 | G47: 4.699
B48: 0.19 | C48: 27.8 | D48: 11.5 | E48: 40.6 | G48: 4.826
B49: 0.195 | C49: 26.2 | D49: 10.8 | E49: 38.39 | G49: 4.953
B50: 0.2 | C50: 24.7 | D50: 10.1 | E50: 36.62 | G50: 5.08
B51: 0.21 | C51: 22.1 | E51: 33.1 | G51: 5.334
B52: 0.22 | C52: 22.1 | E52: 30.1 | G52: 5.588
B53: 0.23 | C53: 18 | E53: 27.3 | G53: 5.842
B54: 0.24 | C54: 16.3 | E54: 24.8 | G54: 6.096
B55: 0.25 | C55: 14.8 | E55: 22.8 | G55: 6.35
B56: 0.255 | E56: 21.78 | G56: 6.477
B57: 0.26 | E57: 20.95 | G57: 6.604
B58: 0.265 | E58: 20.1 | G58: 6.731
B59: 0.27 | E59: 19.42 | G59: 6.858
B60: 0.275 | E60: 18.531 | G60: 6.985
B61: 0.28 | E61: 17.801 | G61: 7.112
B62: 0.285 | E62: 17.074 | G62: 7.239
B63: 0.29 | E63: 16.401 | G63: 7.366
B64: 0.295 | E64: 15.773 | G64: 7.493
B65: 0.3 | E65: 15.209 | G65: 7.62

Sheet Sint. Alnico-Sheet-2
F1: Sintered Alnico Standard Products, Sheet-2
B3: Catalog # | C3: S8A610 | D3: S8A611 | E3: S8A612
B4: Production # | C4: 27291 | D4: 27292 | E4: 27293
B5: Diameter | C5: 0.125 | D5: 0.125 | E5: 0.125
B6: Length | C6: 0.062 | D6: 0.125 | E6: 0.25
B7: Material | C7: Sint. Alnico 8H | D7: Sint. Alnico 8H | E7: Sint. Alnico 8H
G8: Distance
B9: Distance | C9: Gauss(27291) | D9: Gauss(27292) | E9: Gauss(27293) | G9: mm
B10: 0 | C10: 770 | D10: 1250 | E10: 1520 | G10: =B10*25.4 -> 0
B11: 0.01 | C11: 640 | D11: 1040 | E11: 1265 | G11: 0.254
B12: 0.02 | C12: 525 | D12: 860 | E12: 1035 | G12: 0.508
B13: 0.03 | C13: 425 | D13: 700 | E13: 850 | G13: 0.762
B14: 0.04 | C14: 345 | D14: 570 | E14: 700 | G14: 1.016
B15: 0.05 | C15: 275 | D15: 470 | E15: 580 | G15: 1.27
B16: 0.06 | C16: 228 | D16: 380 | E16: 485 | G16: 1.524
B17: 0.07 | C17: 186 | D17: 320 | E17: 415 | G17: 1.778
B18: 0.08 | C18: 154 | D18: 270 | E18: 355 | G18: 2.032
B19: 0.09 | C19: 128 | D19: 228 | E19: 304 | G19: 2.286
B20: 0.1 | C20: 108 | D20: 195 | E20: 262 | G20: 2.54
B21: 0.11 | C21: 92 | D21: 167 | E21: 224 | G21: 2.794
B22: 0.12 | C22: 78 | D22: 144 | E22: 200 | G22: 3.048
B23: 0.13 | C23: 67 | D23: 125 | E23: 176 | G23: 3.302
B24: 0.14 | C24: 59 | D24: 109 | E24: 156 | G24: 3.556
B25: 0.15 | C25: 50 | D25: 97 | E25: 138 | G25: 3.81
B26: 0.16 | C26: 44 | D26: 84 | E26: 124 | G26: 4.064
B27: 0.17 | C27: 39 | D27: 75 | E27: 110 | G27: 4.318
B28: 0.18 | C28: 34 | D28: 66 | E28: 100 | G28: 4.572
B29: 0.19 | C29: 30 | D29: 59 | E29: 90 | G29: 4.826
B30: 0.2 | C30: 26 | D30: 53 | E30: 82 | G30: 5.08
B31: 0.21 | C31: 24 | D31: 48 | E31: 74 | G31: 5.334
B32: 0.22 | C32: 21 | D32: 43 | E32: 68 | G32: 5.588
B33: 0.23 | C33: 19 | D33: 39 | E33: 62 | G33: 5.842
B34: 0.24 | C34: 17 | D34: 36 | E34: 57 | G34: 6.096
B35: 0.25 | C35: 16 | D35: 32 | E35: 52 | G35: 6.35
B36: 0.26 | C36: 14 | D36: 29 | E36: 48 | G36: 6.604
B37: 0.27 | C37: 13 | D37: 27 | E37: 45 | G37: 6.858
B38: 0.28 | C38: 12 | D38: 25 | E38: 42 | G38: 7.112
B39: 0.29 | C39: 11 | D39: 23 | E39: 38 | G39: 7.366
B40: 0.3 | C40: 10 | D40: 22 | E40: 36 | G40: 7.62

Sheet Sint. Alnico-Sheet-3
F1: Sintered Alnico Standard Products, Sheet-3
B3: Catalog # | C3: S8A640 | D3: S8A641 | E3: S8A642
B4: Production # | C4: 27300 | D4: 27301 | E4: 27302
B5: Diameter | C5: 0.5 | D5: 0.5 | E5: 0.5
B6: Length | C6: 0.125 | D6: 0.25 | E6: 0.5
B7: Material | C7: Sint. Alnico 8H | D7: Sint. Alnico 8H | E7: Sint. Alnico 8H
G8: Distance
B9: Distance | C9: Gauss(27300) | D9: Gauss(27301) | E9: Gauss(27302) | G9: mm
B10: 0 | C10: 437 | D10: 875 | E10: 1425 | G10: =B10*25.4 -> 0
B11: 0.01 | C11: 430 | D11: 860 | E11: 1380 | G11: 0.254
B12: 0.02 | C12: 422 | D12: 835 | E12: 1340 | G12: 0.508
B13: 0.03 | C13: 412 | D13: 810 | E13: 1295 | G13: 0.762
B14: 0.04 | C14: 402 | D14: 785 | E14: 1250 | G14: 1.016
B15: 0.05 | C15: 392 | D15: 755 | E15: 1205 | G15: 1.27
B16: 0.06 | C16: 380 | D16: 730 | E16: 1160 | G16: 1.524
B17: 0.07 | C17: 361 | D17: 705 | E17: 1115 | G17: 1.778
B18: 0.08 | C18: 352 | D18: 680 | E18: 1070 | G18: 2.032
B19: 0.09 | C19: 340 | D19: 650 | E19: 1025 | G19: 2.286
B20: 0.1 | C20: 325 | D20: 620 | E20: 980 | G20: 2.54
B21: 0.11 | C21: 310 | D21: 590 | E21: 940 | G21: 2.794
B22: 0.12 | C22: 295 | D22: 565 | E22: 900 | G22: 3.048
B23: 0.13 | C23: 287 | D23: 540 | E23: 855 | G23: 3.302
B24: 0.14 | C24: 267 | D24: 515 | E24: 820 | G24: 3.556
B25: 0.15 | C25: 255 | D25: 490 | E25: 780 | G25: 3.81
B26: 0.16 | C26: 242 | D26: 470 | E26: 745 | G26: 4.064
B27: 0.17 | C27: 230 | D27: 445 | E27: 715 | G27: 4.318
B28: 0.18 | C28: 218 | D28: 423 | E28: 675 | G28: 4.572
B29: 0.19 | C29: 206 | D29: 400 | E29: 645 | G29: 4.826
B30: 0.2 | C30: 195 | D30: 380 | E30: 615 | G30: 5.08
B31: 0.21 | C31: 186 | D31: 365 | E31: 585 | G31: 5.334
B32: 0.22 | C32: 175 | D32: 345 | E32: 560 | G32: 5.588
B33: 0.23 | C33: 166 | D33: 325 | E33: 535 | G33: 5.842
B34: 0.24 | C34: 157 | D34: 310 | E34: 515 | G34: 6.096
B35: 0.25 | C35: 149 | D35: 295 | E35: 485 | G35: 6.35
B36: 0.26 | C36: 141 | D36: 280 | E36: 465 | G36: 6.604
B37: 0.27 | C37: 134 | D37: 270 | E37: 440 | G37: 6.858
B38: 0.28 | C38: 127 | D38: 256 | E38: 420 | G38: 7.112
B39: 0.29 | C39: 120 | D39: 242 | E39: 400 | G39: 7.366
B40: 0.3 | C40: 114 | D40: 230 | E40: 385 | G40: 7.62

Sheet Sint. Alnico-Sheet-4
H1: Sintered Alnico Standard Products, Sheet-4
B3: Catalog # | C3: S8A620 | D3: S8A621 | F3: S8A622
B4: Production # | C4: 27294 | D4: 27295 | E4: 28006 | F4: 27296 | G4: 29770
B5: Diameter | C5: 0.25 | D5: 0.25 | E5: 0.212 | F5: 0.25 | G5: 0.25
B6: Length | C6: 0.0625 | D6: 0.125 | E6: 0.187 | F6: 0.25 | G6: 0.375
B7: Material | C7: Sint.Aln.8H | D7: Sint.Aln.8H | E7: Sint.Aln.8H | F7: Sint.Aln.8H | G7: Sint.Aln.8H
I8: Distance
B9: Distance | C9: 27294 | D9: 27295 | E9: 28006 | F9: 27296 | G9: 29770 | I9: mm
B10: 0 | C10: 450 | D10: 855 | E10: 1290 | F10: 1200 | G10: 1650 | I10: =B10*25.4 -> 0
B11: 0.01 | C11: 435 | D11: 795 | E11: 1132 | F11: 1130 | G11: 1550 | I11: 0.254
B12: 0.02 | C12: 417 | D12: 740 | E12: 1025 | F12: 1050 | G12: 1430 | I12: 0.508
B13: 0.03 | C13: 390 | D13: 675 | E13: 926 | F13: 970 | G13: 1300 | I13: 0.762
B14: 0.04 | C14: 360 | D14: 615 | E14: 829 | F14: 885 | G14: 1190 | I14: 1.016
B15: 0.05 | C15: 330 | D15: 560 | E15: 741 | F15: 810 | G15: 1080 | I15: 1.27
B16: 0.06 | C16: 297 | D16: 505 | E16: 659 | F16: 740 | G16: 990 | I16: 1.524
B17: 0.07 | C17: 267 | D17: 455 | E17: 588 | F17: 675 | G17: 900 | I17: 1.778
B18: 0.08 | C18: 240 | D18: 410 | E18: 526 | F18: 610 | G18: 820 | I18: 2.032
B19: 0.09 | C19: 215 | D19: 370 | E19: 470 | F19: 555 | G19: 740 | I19: 2.286
B20: 0.1 | C20: 195 | D20: 335 | E20: 418 | F20: 505 | G20: 680 | I20: 2.54
B21: 0.11 | C21: 170 | D21: 300 | E21: 374 | F21: 460 | G21: 610 | I21: 2.794
B22: 0.12 | C22: 155 | D22: 270 | E22: 336 | F22: 415 | G22: 565 | I22: 3.048
B23: 0.13 | C23: 140 | D23: 244 | E23: 302 | F23: 380 | G23: 517 | I23: 3.302
B24: 0.14 | C24: 125 | D24: 220 | E24: 272 | F24: 345 | G24: 472 | I24: 3.556
B25: 0.15 | C25: 115 | D25: 198 | E25: 245 | F25: 315 | G25: 432 | I25: 3.81
B26: 0.16 | C26: 102 | D26: 180 | E26: 221 | F26: 285 | G26: 395 | I26: 4.064
B27: 0.17 | C27: 90 | D27: 164 | E27: 202 | F27: 266 | G27: 365 | I27: 4.318
B28: 0.18 | C28: 82 | D28: 148 | E28: 184 | F28: 243 | G28: 337 | I28: 4.572
B29: 0.19 | C29: 75 | D29: 135 | E29: 168 | F29: 224 | G29: 310 | I29: 4.826
B30: 0.2 | C30: 65 | D30: 124 | E30: 153 | F30: 206 | G30: 285 | I30: 5.08
B31: 0.21 | C31: 60 | D31: 114 | E31: 140 | F31: 190 | G31: 265 | I31: 5.334
B32: 0.22 | C32: 55 | D32: 104 | E32: 129 | F32: 175 | G32: 245 | I32: 5.588
B33: 0.23 | C33: 50 | D33: 96 | E33: 119 | F33: 164 | G33: 230 | I33: 5.842
B34: 0.24 | C34: 45 | D34: 88 | E34: 109 | F34: 151 | G34: 215 | I34: 6.096
B35: 0.25 | C35: 40 | D35: 82 | E35: 101 | F35: 140 | G35: 200 | I35: 6.35
B36: 0.26 | C36: 37 | D36: 75 | E36: 93.4 | F36: 130 | I36: 6.604
B37: 0.27 | C37: 33 | D37: 70 | E37: 86.6 | F37: 122 | I37: 6.858
B38: 0.28 | C38: 30 | D38: 65 | E38: 80.5 | F38: 113 | I38: 7.112
B39: 0.29 | C39: 27 | D39: 60 | E39: 75 | F39: 106 | I39: 7.366
B40: 0.3 | C40: 25 | D40: 56 | E40: 69.7 | F40: 99 | G40: 140 | I40: 7.62

Sheet Sint. Alnico-Sheet-5
F1: Sintered Alnico Standard Products, Sheet-5
B3: Catalog # | C3: S8A630 | D3: S8A631 | E3: S8A632
B4: Production # | C4: 27297 | D4: 27298 | E4: 27299
B5: Diameter | C5: 0.375 | D5: 0.375 | E5: 0.375
B6: Length | C6: 0.125 | D6: 0.25 | E6: 0.375
B7: Material | C7: Sint. Alnico 8H | D7: Sint. Alnico 8H | E7: Sint. Alnico 8H
G8: Distance
B9: Distance | C9: Gauss(27297) | D9: Gauss(27298) | E9: Gauss(27299) | G9: mm
B10: 0 | C10: 585 | D10: 1135 | E10: 1330 | G10: =B10*25.4 -> 0
B11: 0.01 | C11: 580 | D11: 1090 | E11: 1285 | G11: 0.254
B12: 0.02 | C12: 562 | D12: 1040 | E12: 1235 | G12: 0.508
B13: 0.03 | C13: 545 | D13: 990 | E13: 1185 | G13: 0.762
B14: 0.04 | C14: 520 | D14: 940 | E14: 1130 | G14: 1.016
B15: 0.05 | C15: 497 | D15: 890 | E15: 1075 | G15: 1.27
B16: 0.06 | C16: 477 | D16: 845 | E16: 1020 | G16: 1.524
B17: 0.07 | C17: 445 | D17: 795 | E17: 965 | G17: 1.778
B18: 0.08 | C18: 420 | D18: 745 | E18: 915 | G18: 2.032
B19: 0.09 | C19: 395 | D19: 700 | E19: 860 | G19: 2.286
B20: 0.1 | C20: 370 | D20: 660 | E20: 810 | G20: 2.54
B21: 0.11 | C21: 345 | D21: 615 | E21: 765 | G21: 2.794
B22: 0.12 | C22: 320 | D22: 575 | E22: 720 | G22: 3.048
B23: 0.13 | C23: 300 | D23: 535 | E23: 675 | G23: 3.302
B24: 0.14 | C24: 280 | D24: 500 | E24: 635 | G24: 3.556
B25: 0.15 | C25: 265 | D25: 475 | E25: 595 | G25: 3.81
B26: 0.16 | C26: 244 | D26: 437 | E26: 560 | G26: 4.064
B27: 0.17 | C27: 228 | D27: 410 | E27: 525 | G27: 4.318
B28: 0.18 | C28: 212 | D28: 385 | E28: 492 | G28: 4.572
B29: 0.19 | C29: 198 | D29: 360 | E29: 465 | G29: 4.826
B30: 0.2 | C30: 185 | D30: 335 | E30: 435 | G30: 5.08
B31: 0.21 | C31: 172 | D31: 317 | E31: 410 | G31: 5.334
B32: 0.22 | C32: 161 | D32: 297 | E32: 385 | G32: 5.588
B33: 0.23 | C33: 150 | D33: 280 | E33: 365 | G33: 5.842
B34: 0.24 | C34: 141 | D34: 260 | E34: 342 | G34: 6.096
B35: 0.25 | C35: 131 | D35: 245 | E35: 325 | G35: 6.35
B36: 0.26 | C36: 123 | D36: 230 | E36: 307 | G36: 6.604
B37: 0.27 | C37: 116 | D37: 213 | E37: 287 | G37: 6.858
B38: 0.28 | C38: 108 | D38: 205 | E38: 272 | G38: 7.112
B39: 0.29 | C39: 101 | D39: 192 | E39: 265 | G39: 7.366
B40: 0.3 | C40: 96 | D40: 181 | E40: 242 | G40: 7.62

Sheet Material Selection Guide
E3: Curie Temperature
B4: Material | C4: Magnetic Properties | D4: Magnetic Characteristics | G4: Temperature Coefficient of Induction | H4: Price* $ / kg
B6: Cast Alnico | C6: Br - 5,500 - 13,500 | D6: Cast to Shape, Hard, Crystal Structure - Grind or EDM | E6: 760 - 840°C | G6: 0.02% / °C | H6: 50
C7: Hc - 475 - 1,900
C8: MGOe 1.4 - 10.5
B9: Sintered Alnico | C9: Br - 6,000 - 10,800 | D9: Powder Pressed to Shape, Strong, Hard Structure - Grind or EDM | E9: 840°C | G9: 0.02% / °C | H9: 80
C10: Hc - 550 - 1,900
C11: MGOe 1.4 - 5.0
B12: Ceramic (Hard Ferrite) | C12: Br - 3,450 - 5,500 | D12: Simple Shapes: Arcs, Rect., Plugs, Rings - Brittle, Hard-Grind | E12: 450°C | G12: 0.2% / °C | H12: 5
C13: Hci - 2,200 - 5,000
C14: MGOe 2.7 - 4.5
B15: Samarium Cobalt | C15: Br - 8,800 - 11,300 | D15: Very Brittle - Grind, Diamond Saw or EDM | E15: 750°C / 825°C | G15: 0.035% / °C | H15: 120
C16: Hci - 10,000 - 21,000
C17: MGOe - 18 - 33
B18: Neodymium Iron Boron | C18: Br - 10,500 - 14,000 | D18: Requires Coating to Prevent Oxidization, Grind, Diamond Saw or EDM | E18: 310 to 370°C | G18: 0.07 - 0.11% / °C | H18: 55
C19: Hci - 11,000 - 35,000
C20: MGOe 27 - 52
B21: Iron-Chrome Cobalt | C21: Br - 9,000 - 13,500 | D21: Can be Formed,r Stamped and Machined Thin Rolled Mat’l 0.050"- .0005" | E21: 600°C | G21: 0.02% / °C | H21: 40
C22: Hc - 50 -350
C23: MGOe - 4.25 - 5.25
B24: Bonded Flexible (Calendered or Extruded) | C24: Br - 2,500 - 5,600 | D24: Flexible, Thermal Shock Resistant, Low-to-no Tooling Charge, Available In Wide Range of Sizes
C25: Hci - 3,500 - 16,000 | E25: Ferrite | F25: 450°C | G25: 0.18% / °C | H25: 3
C26: MGOe 1.4 - 6.2 | E26: Neo | F26: 310-470°C | G26: 0.07 to 0.11% / °C | H26: $35 - $60
B27: Bonded Plastic (Injection Molded) | C27: Br - 2,500 - 6,900 | D27: Complex Shapes, Thin Walls, Tight Dimensions without Machining, Good Strength
C28: Hci - 3,000 - 16,000 | E28: Ferrite | F28: 450°C | G28: 0.18% / °C | H28: 5
C29: MGOe - 1.5 - 10.5 | E29: Neo | F29: 310-470°C | G29: 0.07 to 0.11% / °C | H29: 75
B30: Compression Bonded Neo (Epoxy) | C30: Br - 6,200 - 8,200 | D30: Simple Geometry, Close Tolerancing W.O Machining Higher BhMax Than Inj. Molded With Lower Tooling Cost | E30: Neo | F30: 310-470°C | G30: 0.07 to 0.11% / °C | H30: 40
C31: Hci - 4,300 - 16,000
C32: MGOe - 7.5 - 15.0
B34: Last updated August 2010. * Pricing is crudely approximate and is dependent upon size, shape, quantity, grade of material, etc.
